bitfinex/quotes_BTCUSD_20250527
["timestamp","ask_amount","ask_price","bid_price","bid_amount"]
[1748374841607,0.20123277,109810.0,109800.0,2.12557665]
[1748374841813,0.20123277,109810.0,109800.0,1.94342729]
[1748374842021,0.20123277,109810.0,109800.0,2.13468411]
[1748374842233,0.20123277,109810.0,109800.0,1.95253475]
[1748374842647,0.20123277,109810.0,109800.0,1.94342729]
[1748374842864,0.21703277,109810.0,109800.0,1.94342729]
[1748374846362,0.21703277,109810.0,109800.0,2.13468411]
[1748374846569,0.21703277,109810.0,109800.0,1.95253475]
[1748374846774,0.21703277,109810.0,109800.0,1.94310729]
[1748374848634,0.20123277,109810.0,109800.0,1.94310729]
[1748374849922,0.21733277,109810.0,109800.0,1.94310729]
[1748374850745,0.21733277,109810.0,109800.0,0.73870301]
[1748374850961,0.21733277,109810.0,109800.0,1.05602515]
[1748374855079,0.21733277,109810.0,109800.0,1.65822729]
[1748374856103,0.21733277,109810.0,109800.0,1.32486728]
[1748374857436,0.21733277,109810.0,109800.0,0.72266514]
[1748374859477,0.21733277,109810.0,109800.0,1.32486728]
[1748374859860,0.21733277,109810.0,109800.0,0.72266514]
[1748374860531,0.21733277,109810.0,109800.0,1.32486728]
[1748374866138,0.21733277,109810.0,109800.0,1.47564109]
[1748374871239,0.21737277,109810.0,109800.0,1.47564109]
[1748374875192,0.21737277,109810.0,109800.0,1.47664109]
[1748374879528,0.01914,109810.0,109800.0,1.54072745]
[1748374879736,0.01114614,109810.0,109800.0,6.86639806]
[1748374879949,0.03846463,109810.0,109800.0,5.52781997]
[1748374880155,0.0475711,109810.0,109800.0,5.52781997]
[1748374880336,0.02025219,109810.0,109800.0,6.88299806]
[1748374880548,0.02025211,109810.0,109800.0,7.55411206]
[1748374881059,0.02025202,109810.0,109800.0,7.51812806]
[1748374881484,0.02025202,109810.0,109800.0,7.49201588]
[1748374881745,0.02935816,109810.0,109800.0,8.09668088]
[1748374882356,0.02935824,109810.0,109800.0,8.09668088]
[1748374882579,0.02935824,109810.0,109800.0,8.43668088]
[1748374883310,0.02025202,109810.0,109800.0,8.43668088]
[1748374883517,0.002,109830.0,109820.0,0.55542713]
[1748374883732,0.002,109850.0,109840.0,0.36731144]
[1748374883916,0.20832263,109870.0,109840.0,7.93242125]
[1748374883917,0.0156,109860.0,109840.0,7.93242125]
[1748374884155,0.04250622,109860.0,109850.0,3.62209969]
[1748374884370,0.04250622,109860.0,109850.0,3.50833236]
[1748374884371,0.0182039,109860.0,109850.0,3.50833236]
[1748374884593,0.21845835,109860.0,109850.0,3.49922937]
[1748374884813,0.21845835,109860.0,109850.0,3.51743543]
[1748374885042,0.03640838,109860.0,109850.0,4.77344866]
[1748374885256,0.00910183,109860.0,109850.0,5.07382192]
[1748374885486,0.02730606,109860.0,109850.0,5.08292466]
[1748374885931,0.02730606,109860.0,109850.0,2.02882066]
[1748374886142,0.02730606,109860.0,109850.0,6.01569607]
[1748374886370,0.02930598,109860.0,109850.0,5.77840507]
[1748374886590,0.0384083,109860.0,109850.0,5.77840507]
[1748374887073,0.02930598,109860.0,109850.0,5.09970407]
[1748374887279,0.02830598,109860.0,109850.0,5.09970407]
[1748374887495,0.0374083,109860.0,109850.0,5.09970407]
[1748374887710,0.02830598,109860.0,109850.0,5.11301203]
[1748374888123,0.02830598,109860.0,109850.0,6.34895903]
[1748374888124,0.01920373,109860.0,109850.0,6.34895903]
[1748374888359,0.03640821,109860.0,109850.0,6.31120203]
[1748374888568,0.03640821,109860.0,109850.0,6.21095603]
[1748374888777,0.02730589,109860.0,109850.0,5.60936103]
[1748374888982,0.02730589,109860.0,109850.0,1.31445903]
[1748374889205,0.18214977,109880.0,109860.0,0.55555428]
[1748374889452,0.20027815,109880.0,109870.0,4.28990913]
[1748374889668,0.20027815,109880.0,109870.0,4.2808078]
[1748374890096,0.20027815,109880.0,109870.0,5.3008048]
[1748374890320,0.20027815,109880.0,109870.0,4.1617868]
[1748374890535,0.20027815,109880.0,109870.0,3.9650138]
[1748374891174,0.20027815,109880.0,109870.0,4.1099908]
[1748374891394,0.20027815,109880.0,109870.0,4.12819354]
[1748374891602,0.20027815,109880.0,109870.0,4.09205321]
[1748374891809,0.20027815,109880.0,109870.0,3.97308049]
[1748374891810,0.20127815,109880.0,109870.0,3.97308049]
[1748374892033,0.20127815,109880.0,109870.0,4.32218165]
[1748374892243,0.20127815,109880.0,109870.0,5.49657165]
[1748374892653,0.01016034,109880.0,109870.0,5.48616973]
[1748374892863,0.03746152,109880.0,109870.0,4.89967473]
[1748374893076,0.03846152,109880.0,109870.0,1.64716873]
[1748374893293,0.03846152,109880.0,109870.0,5.29410673]
[1748374893501,0.03846152,109880.0,109870.0,5.10609773]
[1748374893929,0.03846152,109880.0,109870.0,5.70769273]
[1748374894165,0.03846152,109880.0,109870.0,5.71223673]
[1748374894862,0.00206,109880.0,109870.0,5.74227758]
[1748374895084,0.029308,109890.0,109880.0,0.23895909]
[1748374895299,0.03840742,109890.0,109880.0,6.28351704]
[1748374895503,0.03840742,109890.0,109880.0,6.49916304]
[1748374895504,0.04750701,109890.0,109880.0,6.49916304]
[1748374895714,0.05660668,109890.0,109880.0,6.58320304]
[1748374895941,0.06570652,109890.0,109880.0,4.78228104]
[1748374896153,0.22950794,109890.0,109880.0,3.25695795]
[1748374896365,0.22950794,109890.0,109880.0,0.85292239]
[1748374896366,0.24490794,109890.0,109880.0,0.85292239]
[1748374896570,0.26020794,109890.0,109880.0,2.46796039]
[1748374896775,0.26020794,109890.0,109880.0,2.18448039]
[1748374896985,0.26020794,109890.0,109880.0,1.55607839]
[1748374897217,0.24490794,109890.0,109880.0,1.94843139]
[1748374897429,0.24490794,109890.0,109880.0,2.29834639]
[1748374897641,0.22950794,109890.0,109880.0,3.38456554]
[1748374897847,0.2204081,109890.0,109880.0,3.37546496]
[1748374898067,0.24220818,109890.0,109880.0,0.34266844]
[1748374898283,0.24220818,109890.0,109880.0,0.94426344]
[1748374898712,0.24220818,109890.0,109880.0,0.81054244]
[1748374900813,0.24220818,109890.0,109880.0,0.77952644]
[1748374901026,0.24220818,109890.0,109880.0,0.74586044]
[1748374909269,0.24220818,109890.0,109880.0,0.53460838]
[1748374909477,0.24220818,109890.0,109880.0,0.80554238]
[1748374909686,0.24220818,109890.0,109880.0,0.53460838]
[1748374909931,0.2093561,109860.0,109850.0,0.74190436]
[1748374910134,0.02730614,109860.0,109850.0,3.82003771]
[1748374910344,0.02730614,109860.0,109850.0,3.62036771]
[1748374910345,0.01820382,109860.0,109850.0,3.62036771]
[1748374911168,0.01820382,109860.0,109850.0,6.48652371]
[1748374911169,0.02730589,109860.0,109850.0,6.48652371]
[1748374912208,0.02730589,109860.0,109850.0,6.63459371]
[1748374912439,0.01820382,109860.0,109850.0,6.46843571]
[1748374912620,0.01820382,109860.0,109850.0,6.47143571]
[1748374913033,0.01820382,109860.0,109850.0,6.18803571]
[1748374913245,0.01820382,109860.0,109850.0,6.63759371]
[1748374914912,0.00910183,109860.0,109850.0,6.63759371]
[1748374915125,0.00910183,109860.0,109850.0,1.73141171]
[1748374915332,0.19114993,109870.0,109860.0,0.2093566]
[1748374915333,0.02530133,109870.0,109860.0,0.2093566]
[1748374915459,0.22553721,109870.0,109860.0,0.91110746]
[1748374915658,0.23463887,109870.0,109860.0,3.19314946]
[1748374916263,0.23463887,109870.0,109860.0,3.20809046]
[1748374916898,0.23463887,109870.0,109860.0,3.19046855]
[1748374917319,0.23463887,109870.0,109860.0,3.20426355]
[1748374917608,0.2118052,109890.0,109860.0,3.20426355]
[1748374917609,0.02980502,109890.0,109860.0,3.21946355]
[1748374917818,0.002,109910.0,109900.0,0.563821]
[1748374918042,0.002,109930.0,109920.0,0.20924207]
[1748374918250,0.002,109930.0,109920.0,5.04491407]
[1748374918467,0.002,109930.0,109920.0,4.71390007]
[1748374918679,0.002,109930.0,109920.0,1.03344602]
[1748374918680,0.03549198,109930.0,109920.0,1.03344602]
[1748374918895,0.20014479,109920.0,109900.0,0.20067875]
[1748374919107,0.02439678,109920.0,109910.0,0.43776841]
[1748374919319,0.02439686,109920.0,109910.0,1.04846151]
[1748374919546,0.03349388,109920.0,109910.0,1.06665763]
[1748374919758,0.02439686,109920.0,109910.0,1.07575548]
[1748374919965,0.02339686,109920.0,109910.0,1.07575548]
[1748374920187,0.03249388,109920.0,109910.0,1.0575597]
[1748374920403,0.0143,109920.0,109910.0,1.40665747]
[1748374920611,0.0143,109920.0,109910.0,1.49771142]
[1748374921028,0.12372867,109930.0,109920.0,0.19104802]
[1748374921235,0.11463231,109930.0,109920.0,0.80174037]
[1748374921446,0.002,109930.0,109920.0,2.79118077]
[1748374921637,0.002,109930.0,109920.0,2.52315253]
[1748374922300,0.002,109930.0,109920.0,2.62771824]
[1748374922510,0.002,109930.0,109920.0,3.22053524]
[1748374923141,0.005,109930.0,109920.0,3.22053524]
[1748374923570,0.005,109930.0,109920.0,5.33449024]
[1748374923781,0.005,109930.0,109920.0,5.19537824]
[1748374924459,0.005,109930.0,109920.0,6.78085524]
[1748374924680,0.002,109950.0,109940.0,0.549204]
[1748374924887,0.002,109950.0,109940.0,4.25986295]
[1748374925568,0.002,109970.0,109960.0,0.54916596]
[1748374925776,0.22624719,109970.0,109960.0,1.53077832]
[1748374925980,0.22624719,109970.0,109960.0,1.54909032]
[1748374925981,0.04437925,109970.0,109960.0,1.54909032]
[1748374926414,0.0171,109970.0,109960.0,2.16887283]
[1748374926630,0.03528578,109970.0,109960.0,2.15977912]
[1748374926841,0.0534718,109970.0,109960.0,2.16887275]
[1748374927044,0.23533958,109970.0,109960.0,2.15977912]
[1748374927269,0.22624694,109970.0,109960.0,2.15977912]
[1748374927941,0.22624694,109970.0,109960.0,2.15068532]
[1748374928163,0.21106108,109970.0,109960.0,2.15068532]
[1748374928589,0.19896778,109970.0,109960.0,2.14159127]
[1748374928765,0.19896778,109970.0,109960.0,1.74083574]
[1748374928978,0.21716778,109970.0,109960.0,1.08145874]
[1748374929222,0.21716778,109970.0,109960.0,1.05651074]
[1748374929653,0.37752768,109970.0,109960.0,0.00012374]
[1748374929863,0.30822173,109970.0,109960.0,0.00012374]
[1748374930042,0.30822173,109970.0,109960.0,0.60171874]
[1748374930292,0.30822173,109970.0,109960.0,0.00012374]
[1748374930729,0.30822173,109970.0,109960.0,0.60171874]
[1748374933187,0.60178173,109970.0,109960.0,0.60171874]
[1748374935933,0.60178173,109970.0,109960.0,0.00012374]
[1748374936148,0.69058508,109970.0,109960.0,0.00012374]
[1748374937238,0.70512593,109970.0,109960.0,0.00012374]
[1748374938580,0.70312593,109970.0,109960.0,0.00012374]
[1748374939016,0.70912593,109970.0,109960.0,0.00012374]
[1748374940426,1.32072093,109970.0,109960.0,0.00012374]
[1748374940601,1.32072093,109970.0,109930.0,0.0731964]
[1748374940602,0.20010855,109940.0,109930.0,0.0731964]
[1748374940861,0.6150425,109940.0,109930.0,0.07332012]
[1748374941280,0.6150425,109940.0,109930.0,0.41332012]
[1748374941948,0.6170425,109940.0,109930.0,0.41332012]
[1748374942193,0.6180425,109940.0,109930.0,0.41332012]
[1748374944647,0.6180425,109940.0,109930.0,0.07332012]
[1748374945094,0.6180425,109940.0,109930.0,0.00012372]
[1748374946260,0.70847684,109940.0,109930.0,0.00012372]
[1748374947574,0.73301769,109940.0,109930.0,0.00012372]
[1748374952657,0.64258335,109940.0,109930.0,0.00012372]
[1748374954475,0.35010335,109940.0,109930.0,0.00012372]
[1748374954657,0.64062335,109940.0,109930.0,0.00012372]
[1748374957684,0.35010335,109940.0,109930.0,0.00012372]
[1748374957892,0.73314335,109940.0,109930.0,0.00012372]
[1748374958323,0.8241973,109940.0,109930.0,0.00012372]
[1748374958551,0.8241173,109940.0,109930.0,0.00012372]
[1748374960929,0.73306335,109940.0,109930.0,0.00012372]
[1748374963973,0.73306335,109940.0,109930.0,0.60171872]
[1748374963974,0.6148025,109940.0,109930.0,0.60171872]
[1748374965347,0.5990025,109940.0,109930.0,0.60171872]
[1748374967050,0.3097625,109940.0,109930.0,0.60171872]
[1748374967233,0.5986025,109940.0,109930.0,0.60171872]
[1748374968214,0.3097625,109940.0,109930.0,0.60171872]
[1748374968422,0.5984425,109940.0,109930.0,0.60171872]
[1748374969207,0.5983225,109940.0,109930.0,0.60171872]
[1748374969986,0.5983225,109940.0,109930.0,0.00012372]
[1748374970187,0.3097625,109940.0,109930.0,0.60171872]
[1748374970399,0.5982025,109940.0,109930.0,0.60171872]
[1748374971195,0.2941625,109940.0,109930.0,0.60171872]
[1748374971395,0.49146855,109940.0,109930.0,0.61741872]
[1748374974146,0.49146855,109940.0,109930.0,0.01582372]
[1748374974352,0.49146855,109940.0,109930.0,0.60171872]
[1748374974948,0.49146855,109940.0,109930.0,0.00012372]
[1748374975217,0.49146855,109940.0,109930.0,0.60171872]
[1748374976955,0.50756855,109940.0,109930.0,0.60171872]
[1748374978101,0.5986225,109940.0,109930.0,0.60171872]
[1748374978300,0.6139225,109940.0,109930.0,0.00012372]
[1748374979131,0.6139225,109940.0,109930.0,0.60171872]
[1748374979735,0.6139225,109940.0,109930.0,0.00012372]
[1748374980519,0.63114217,109940.0,109930.0,0.00012372]
[1748374982351,0.6139225,109940.0,109930.0,0.00012372]
[1748374982755,0.6119225,109940.0,109930.0,0.00012372]
[1748374982957,0.6109225,109940.0,109930.0,0.00012372]
[1748374983273,0.6149225,109940.0,109930.0,0.00012372]
[1748374988268,0.6149225,109940.0,109930.0,0.60171872]
[1748374988637,0.69560484,109940.0,109930.0,0.00012372]
[1748374988841,0.43178569,109940.0,109930.0,0.00012372]
[1748374989051,1.46330579,109940.0,109930.0,0.00012372]
[1748374989276,1.60894195,109940.0,109930.0,0.00012372]
[1748374989839,2.38534195,109940.0,109930.0,0.00012372]
[1748374990056,2.41087472,109940.0,109930.0,0.00012372]
[1748374990508,2.38534195,109940.0,109930.0,0.00012372]
[1748374990737,2.28971195,109940.0,109930.0,0.00012372]
[1748374991407,1.86676142,109940.0,109930.0,0.00012372]
[1748374991614,1.86676142,109940.0,109920.0,0.002]
[1748374991615,0.57717133,109930.0,109920.0,0.002]
[1748374991823,0.57717133,109930.0,109920.0,0.00212247]
[1748374991824,1.51281116,109930.0,109920.0,0.00212247]
[1748374992462,1.5449535,109930.0,109920.0,0.00212247]
[1748374993303,1.5234373,109930.0,109920.0,0.00212247]
[1748374993511,1.5194373,109930.0,109920.0,0.00212247]
[1748374993984,1.5244373,109930.0,109920.0,0.00212247]
[1748374995429,1.5294373,109930.0,109920.0,0.00212247]
[1748374995850,1.4338073,109930.0,109920.0,0.00212247]
[1748375001188,1.37087423,109930.0,109920.0,0.00212247]
[1748375001428,1.48822116,109930.0,109920.0,0.00212247]
[1748375001845,2.18544616,109930.0,109920.0,0.00212247]
[1748375002060,2.18544616,109930.0,109900.0,0.002]
[1748375002061,0.64190402,109910.0,109900.0,0.002]
[1748375002276,2.35282321,109910.0,109900.0,0.00212347]
[1748375002731,2.39618059,109910.0,109900.0,0.00212347]
[1748375003156,2.34618059,109910.0,109900.0,0.00212347]
[1748375003373,2.39618059,109910.0,109900.0,0.00212347]
[1748375003582,2.39993949,109910.0,109900.0,0.00212347]
[1748375004253,2.40893949,109910.0,109900.0,0.00212347]
[1748375004460,2.4409518,109910.0,109900.0,0.00212347]
[1748375004698,2.4379518,109910.0,109900.0,0.00212347]
[1748375004914,2.4429518,109910.0,109900.0,0.00312347]
[1748375005480,2.44289698,109910.0,109900.0,0.00312347]
[1748375005699,2.43789698,109910.0,109900.0,0.00212347]
[1748375005909,2.45939628,109910.0,109900.0,0.00312347]
[1748375006329,2.45539628,109910.0,109900.0,0.00312347]
[1748375006548,2.39939628,109910.0,109900.0,0.00312347]
[1748375006766,2.45639628,109910.0,109900.0,0.00412347]
[1748375007187,2.00481365,109910.0,109900.0,0.00412347]
[1748375007390,2.38057365,109910.0,109900.0,0.00412347]
[1748375007833,2.43061365,109910.0,109900.0,0.00412347]
[1748375008476,2.43057365,109910.0,109900.0,0.00412347]
[1748375008683,2.38057365,109910.0,109900.0,0.00412347]
[1748375009143,2.38049365,109910.0,109900.0,0.00412347]
[1748375009560,2.31785512,109910.0,109900.0,0.00412347]
[1748375009782,2.430378,109910.0,109900.0,0.00412347]
[1748375011302,2.095378,109910.0,109900.0,0.00412347]
[1748375011511,0.20565826,109880.0,109870.0,0.0731964]
[1748375011721,0.30671221,109880.0,109870.0,0.08999342]
[1748375011950,0.68075221,109880.0,109870.0,0.08999342]
[1748375012157,0.73075221,109880.0,109870.0,0.08999342]
[1748375012384,0.1911522,109860.0,109850.0,0.57615181]
[1748375012603,0.28220615,109860.0,109850.0,0.58460441]
[1748375013251,0.28220615,109860.0,109850.0,0.58460525]
[1748375013653,0.28220615,109860.0,109850.0,0.58460687]
[1748375014297,0.28320615,109860.0,109850.0,0.58460669]
[1748375014717,0.28320615,109860.0,109850.0,0.58460878]
[1748375015461,0.28320615,109860.0,109850.0,0.60830878]
[1748375015804,0.3582021,109860.0,109850.0,0.03215697]
[1748375016072,0.3582021,109860.0,109850.0,0.02505985]
[1748375016246,0.4474421,109860.0,109850.0,0.02506026]
[1748375017045,0.37244615,109860.0,109850.0,0.63375526]
[1748375017679,0.1921522,109860.0,109850.0,0.63375526]
[1748375017880,0.1921522,109860.0,109850.0,0.63376152]
[1748375018283,0.1921522,109860.0,109850.0,0.625295]
[1748375018827,0.1921522,109860.0,109850.0,0.63248699]
[1748375021230,0.1921522,109860.0,109850.0,0.63249241]
[1748375021428,0.1921522,109860.0,109850.0,0.63249228]
[1748375021631,0.20634855,109860.0,109850.0,0.6324937]
[1748375021834,0.28320615,109860.0,109850.0,0.02379962]
[1748375022246,0.28320615,109860.0,109840.0,0.603595]
[1748375022247,0.1911696,109850.0,109840.0,0.618695]
[1748375022448,0.28222355,109850.0,109840.0,0.62717565]
[1748375022974,0.28222355,109850.0,109840.0,0.627178]
[1748375023725,0.56658355,109850.0,109840.0,0.01148425]
[1748375023943,0.73225689,109850.0,109840.0,0.01148425]
[1748375025357,0.73225689,109850.0,109840.0,0.0114874]
[1748375025999,0.73225689,109850.0,109840.0,0.01148902]
[1748375026427,0.73225689,109850.0,109840.0,0.003]
[1748375026629,0.65582355,109850.0,109840.0,0.003]
[1748375026835,0.65582355,109850.0,109840.0,0.01149099]
[1748375027023,0.65586355,109850.0,109840.0,0.01149099]
[1748375027418,0.65586355,109850.0,109840.0,0.01149097]
[1748375028671,0.67116355,109850.0,109840.0,0.01149097]
[1748375028903,0.75747092,109850.0,109840.0,0.003]
[1748375029042,0.75747092,109850.0,109840.0,0.01149629]
[1748375030272,0.75747092,109850.0,109840.0,0.01150016]
[1748375030909,0.75747092,109850.0,109840.0,0.01150446]
[1748375031336,0.77417092,109850.0,109840.0,0.01150446]
[1748375031509,0.77417092,109850.0,109840.0,0.01150536]
[1748375032120,0.38387092,109850.0,109840.0,0.01150536]
[1748375032317,0.67116355,109850.0,109840.0,0.604595]
[1748375034651,0.1912096,109850.0,109840.0,1.56949]
[1748375034869,0.1912096,109850.0,109840.0,0.967895]
[1748375041661,0.1912096,109850.0,109840.0,0.960795]
[1748375042326,0.1912096,109850.0,109840.0,0.968795]
[1748375044202,0.1912096,109850.0,109840.0,2.62483535]
[1748375044430,0.20031267,109850.0,109840.0,2.402436]
[1748375044640,0.20031267,109850.0,109840.0,1.6056]
[1748375044859,0.20031267,109850.0,109840.0,1.562885]
[1748375045960,0.20031267,109850.0,109840.0,1.279832]
[1748375048785,0.20031267,109850.0,109840.0,0.939832]
[1748375054250,0.20031267,109850.0,109840.0,0.931832]
[1748375056888,0.20031267,109850.0,109840.0,0.915632]
[1748375057118,0.20031267,109850.0,109840.0,0.314037]
[1748375057346,0.20031267,109850.0,109840.0,1.255632]
[1748375059818,0.21631267,109850.0,109840.0,0.654037]
[1748375060073,0.21631267,109850.0,109840.0,1.255632]
[1748375060702,0.23221267,109850.0,109840.0,1.255632]
[1748375060904,0.23221267,109850.0,109840.0,0.654037]
[1748375061120,0.23221267,109850.0,109840.0,1.255632]
[1748375064483,0.21631267,109850.0,109840.0,1.255632]
[1748375068064,0.21631267,109850.0,109840.0,1.06089709]
[1748375068213,0.21631267,109850.0,109840.0,1.528163]
[1748375068426,0.21631267,109850.0,109840.0,1.336429]
[1748375070919,0.23221267,109850.0,109840.0,1.286438]
[1748375072985,0.23221267,109850.0,109840.0,0.34]
[1748375072986,0.34123006,109850.0,109840.0,0.34]
[1748375073212,0.34123006,109850.0,109820.0,0.30144]
[1748375073213,0.20030897,109830.0,109820.0,0.30144]
[1748375073452,0.20030897,109830.0,109820.0,1.838139]
[1748375073674,0.20030897,109830.0,109820.0,1.804839]
[1748375074125,0.20030897,109830.0,109820.0,1.789639]
[1748375074342,0.20030897,109830.0,109820.0,0.887835]
[1748375074554,0.20080599,109830.0,109820.0,1.805251]
[1748375075638,0.20080599,109830.0,109820.0,1.521021]
[1748375075862,0.20080599,109830.0,109820.0,1.499798]
[1748375076094,0.21640599,109830.0,109820.0,1.685367]
[1748375076541,0.21640599,109830.0,109820.0,1.771885]
[1748375077602,0.21640599,109830.0,109820.0,1.874566]
[1748375078096,0.21640599,109830.0,109820.0,1.218537]
[1748375078334,0.21640599,109830.0,109820.0,1.820132]
[1748375078545,0.21640599,109830.0,109820.0,0.894835]
[1748375078763,0.21640599,109830.0,109820.0,1.88468]
[1748375079646,0.21640599,109830.0,109820.0,1.907907]
[1748375080112,0.21640599,109830.0,109820.0,1.884713]
[1748375080548,0.21640599,109830.0,109820.0,0.894835]
[1748375080757,0.21640599,109830.0,109820.0,1.974301]
[1748375081870,0.21640599,109830.0,109820.0,1.984491]
[1748375082151,0.21640599,109830.0,109820.0,1.700251]
[1748375082384,0.21640599,109830.0,109820.0,1.984451]
[1748375082824,0.21640599,109830.0,109820.0,1.952057]
[1748375083858,0.21640599,109830.0,109820.0,1.945434]
[1748375084813,0.21640599,109830.0,109820.0,1.6945]
[1748375085293,0.21640599,109830.0,109820.0,1.083905]
[1748375085787,0.21640599,109830.0,109820.0,1.688468]
[1748375086036,0.21640599,109830.0,109820.0,1.638268]
[1748375086962,0.21640599,109830.0,109820.0,1.686163]
[1748375087426,0.21640599,109830.0,109820.0,1.637073]
[1748375087876,0.21640599,109830.0,109820.0,1.605916]
[1748375088821,0.21640599,109830.0,109820.0,1.621404]
[1748375089261,0.21640599,109830.0,109820.0,1.554731]
[1748375089914,0.23290599,109830.0,109820.0,1.545511]
[1748375091039,0.23290599,109830.0,109820.0,1.588207]
[1748375092174,0.23290599,109830.0,109820.0,1.608732]
[1748375093016,0.23290599,109830.0,109820.0,1.585031]
[1748375093310,0.23290599,109830.0,109820.0,1.619666]
[1748375093795,0.23290599,109830.0,109820.0,1.562898]
[1748375094297,0.23290599,109830.0,109820.0,1.561068]
[1748375095271,0.23290599,109830.0,109820.0,1.41996]
[1748375096165,0.23290599,109830.0,109820.0,1.430381]
[1748375097275,0.23290599,109830.0,109820.0,1.3951]
[1748375098130,0.23290599,109830.0,109820.0,1.45151]
[1748375098331,0.23290599,109830.0,109820.0,1.166051]
[1748375100488,0.22842599,109830.0,109820.0,1.166051]
[1748375101097,0.22842599,109830.0,109820.0,1.128973]
[1748375101270,0.22842599,109830.0,109800.0,0.605995]
[1748375101271,0.23224546,109810.0,109800.0,0.605995]
[1748375101652,0.23224546,109810.0,109800.0,0.61451744]
[1748375102363,0.23224546,109810.0,109800.0,0.61451802]
[1748375102837,0.23124546,109810.0,109800.0,0.608995]
[1748375103526,0.23124546,109810.0,109800.0,0.950995]
[1748375109424,0.21494546,109810.0,109800.0,2.72914666]
[1748375109639,0.21494587,109810.0,109800.0,3.29260014]
[1748375109857,0.0156,109810.0,109800.0,3.02374284]
[1748375110082,0.27365057,109830.0,109820.0,0.20032755]
[1748375110083,0.20080641,109830.0,109820.0,0.20032755]
[1748375110301,0.20080641,109830.0,109820.0,1.77854099]
[1748375110513,0.20080641,109830.0,109820.0,2.54881981]
[1748375110725,0.20080641,109830.0,109820.0,2.55792537]
[1748375111176,0.20080641,109830.0,109820.0,2.51760763]
[1748375111611,0.20080641,109830.0,109820.0,2.66843963]
[1748375112034,0.1917016,109830.0,109820.0,2.65933399]
[1748375112249,0.18459662,109830.0,109820.0,2.62603899]
[1748375112726,0.18459662,109830.0,109820.0,2.63514471]
[1748375113561,0.18459662,109830.0,109820.0,2.418017]
[1748375113776,0.20119662,109830.0,109820.0,0.695939]
[1748375114033,0.21769662,109830.0,109820.0,1.245807]
[1748375116000,0.21769662,109830.0,109820.0,1.125915]
[1748375116659,0.21769662,109830.0,109820.0,0.835974]
[1748375117520,0.21769662,109830.0,109820.0,1.175974]
[1748375120717,0.21769662,109830.0,109820.0,1.13836]
[1748375120924,0.21769662,109830.0,109820.0,1.066347]
[1748375125270,0.21769662,109830.0,109820.0,0.87710588]
[1748375127919,0.21769662,109830.0,109820.0,0.75235388]
[1748375128148,0.21769662,109830.0,109820.0,0.87918988]
[1748375129424,0.21769662,109830.0,109820.0,0.87939588]
[1748375131605,0.21707338,109830.0,109820.0,0.87939588]
[1748375137017,0.21707338,109830.0,109820.0,0.34]
[1748375137478,0.21707338,109830.0,109820.0,0.493951]
[1748375138194,0.21707338,109830.0,109820.0,1.095546]
[1748375140133,0.21707338,109830.0,109820.0,0.493951]
[1748375140352,0.21707338,109830.0,109820.0,0.34]
[1748375140353,0.25720736,109830.0,109820.0,0.34]
[1748375141004,0.21707338,109830.0,109820.0,0.466951]
[1748375142797,0.21707338,109830.0,109820.0,1.068546]
[1748375146148,0.21707338,109830.0,109820.0,1.045111]
[1748375146375,0.21707338,109830.0,109820.0,0.34]
[1748375146581,0.21707338,109830.0,109820.0,0.443516]
[1748375146791,0.21707338,109830.0,109820.0,0.34]
[1748375147469,0.21707338,109830.0,109820.0,1.056141]
[1748375148133,0.21707338,109830.0,109820.0,0.90615406]
[1748375152338,0.21707338,109830.0,109820.0,0.89464406]
[1748375153710,0.21707338,109830.0,109820.0,0.443036]
[1748375153711,0.21707338,109830.0,109820.0,0.89464406]
[1748375153951,0.21707338,109830.0,109820.0,0.91370706]
[1748375154183,0.21707338,109830.0,109820.0,0.462369]
[1748375154408,0.21707338,109830.0,109820.0,0.91397706]
[1748375156296,0.21707338,109830.0,109820.0,0.79160806]
[1748375157627,0.21707338,109830.0,109820.0,1.40245612]
[1748375157846,0.21707338,109830.0,109820.0,0.49924]
[1748375158054,0.21707338,109830.0,109820.0,1.40245612]
[1748375158260,0.21707338,109830.0,109820.0,0.95084806]
[1748375158480,0.21707338,109830.0,109820.0,0.15924]
[1748375158734,0.21855781,109810.0,109800.0,1.49882769]
[1748375158950,0.21855781,109810.0,109800.0,5.27274757]
[1748375159161,0.20945192,109810.0,109800.0,4.22614752]
[1748375159784,0.20945192,109810.0,109800.0,4.23525465]
[1748375159992,0.20945192,109810.0,109800.0,5.75609471]
[1748375160203,0.20945192,109810.0,109800.0,1.95032071]
[1748375160424,0.20945192,109810.0,109800.0,4.76810171]
[1748375160636,0.20945192,109810.0,109800.0,1.95942776]
[1748375160854,0.20945192,109810.0,109800.0,5.71502176]
[1748375161361,0.20945192,109810.0,109800.0,5.69680758]
[1748375161585,0.20945192,109810.0,109800.0,4.32530567]
[1748375161586,0.20034578,109810.0,109800.0,4.32530567]
[1748375161813,0.18213277,109810.0,109800.0,3.38866868]
[1748375162038,0.21383277,109810.0,109800.0,0.99786162]
[1748375162258,0.21383277,109810.0,109800.0,1.33786162]
[1748375162474,0.21383277,109810.0,109800.0,1.44946968]
[1748375162689,0.21383277,109810.0,109800.0,1.78946968]
[1748375163975,0.21383277,109810.0,109800.0,0.88625356]
[1748375164198,0.21383277,109810.0,109800.0,1.4886098]
[1748375168495,0.21147277,109810.0,109800.0,1.4886098]
[1748375170487,0.19617277,109810.0,109800.0,1.4886098]
[1748375171285,0.19617277,109810.0,109800.0,1.67075916]
[1748375171493,0.17977277,109810.0,109800.0,3.36072062]
[1748375171692,0.17977277,109810.0,109800.0,2.4124638]
[1748375172297,0.19607277,109810.0,109800.0,2.4124638]
[1748375172674,0.19607277,109810.0,109800.0,2.2141908]
[1748375173090,0.19607277,109810.0,109800.0,2.20441124]
[1748375173307,0.21107277,109810.0,109800.0,1.535895]
[1748375173519,0.21107277,109810.0,109800.0,2.42816224]
[1748375174372,0.21107277,109810.0,109800.0,2.32859024]
[1748375174581,0.21107277,109810.0,109800.0,2.39077524]
[1748375174751,0.21107277,109810.0,109800.0,2.35747524]
[1748375175185,0.21107277,109810.0,109800.0,1.81867924]
[1748375175387,0.21107277,109810.0,109800.0,1.80837224]
[1748375175589,0.21107277,109810.0,109800.0,1.92117124]
[1748375175783,0.21107277,109810.0,109800.0,1.88935424]
[1748375176562,0.21107277,109810.0,109800.0,1.92975224]
[1748375177618,0.21107277,109810.0,109800.0,1.88137724]
[1748375177863,0.21107277,109810.0,109800.0,1.82497724]
[1748375178519,0.21107277,109810.0,109800.0,1.80504024]
[1748375179705,0.21107277,109810.0,109800.0,1.92457924]
[1748375179942,0.21107277,109810.0,109800.0,1.86817924]
[1748375180851,0.21107277,109810.0,109800.0,0.95175624]
[1748375181093,0.21107277,109810.0,109800.0,1.218883]
[1748375181094,0.34144712,109810.0,109800.0,1.218883]
[1748375181295,0.62520712,109810.0,109800.0,0.01790954]
[1748375181546,0.58588672,109810.0,109800.0,0.01790733]
[1748375182033,0.58588672,109810.0,109800.0,0.0094]